[Event "Sheikh Russel GM 2021"]
[Site "Dhaka"]
[Date "2021.10.23"]
[Round "5.3"]
[White "Mosadeghpour, Masoud"]
[Black "Shyam, Sundar M."]
[Result "1-0"]
[ECO "C45"]
[WhiteElo "2486"]
[BlackElo "2518"]
[Annotator "ChessBase"]
[PlyCount "145"]
[EventDate "2021.10.19"]
[EventType "swiss"]
[EventCountry "BAN"]
[SourceTitle "playchess.com"]
[Source "ChessBase"]
[SourceQuality "1"]
[TimeControl "40/5400+30:1800+30"]

1. e4 {[%emt 0:02:34]} e5 {[%emt 0:01:23]} 2. Nf3 {[%emt 0:00:41]} Nc6 {[%emt 0:00:14]} 3. d4 {[%emt 0:03:38]} exd4 {[%emt 0:00:36]} 4. Nxd4 {[%emt 0:00:43]} Nf6 {[%emt 0:01:05]} 5. Nxc6 {[%emt 0:02:12]} bxc6 {[%emt 0:00:07]} 6. Nd2 {[%emt 0:00:22]} d5 {[%emt 0:04:04]} 7. exd5 {[%emt 0:00:33]} cxd5 {[%emt 0:00:05]} 8. Bb5+ {[%emt 0:00:10]} Bd7 {[%emt 0:00:04]} 9. Bxd7+ {[%emt 0:00:05]} Qxd7 {[%emt 0:00:02]} 10. O-O {[%emt 0:00:07]} Be7 {[%emt 0:00:02]} 11. b3 {[%emt 0:00:06]} O-O {[%emt 0:00:06]} 12. Bb2 {[%emt 0:00:01]} Rfe8 {[%emt 0:34:05]} 13. Re1 {[%emt 0:01:25]} a5 {[%emt 0:01:16]} 14. a4 {[%emt 0:20:10]} Bb4 {[%emt 0:04:01]} 15. Rxe8+ {[%emt 0:02:48]} Rxe8 {[%emt 0:00:03]} 16. Bxf6 {[%emt 0:00:19]} gxf6 {[%emt 0:00:02]} 17. Nf3 {[%emt 0:00:17]} Bc3 {[%emt 0:10:14]} 18. Rc1 {[%emt 0:07:28]} Qf5 {[%emt 0:00:06]} 19. Qd3 {[%emt 0:01:25]} Qxd3 {[%emt 0:00:07]} 20. cxd3 {[%emt 0:00:01]} d4 {[%emt 0:00:01]} 21. Kf1 {[%emt 0:00:26]} Kf8 {[%emt 0:08:19]} 22. Ng1 {[%emt 0:01:41]} Rb8 {[%emt 0:00:04]} 23. Rb1 {[%emt 0:00:01]} Ke7 {[%emt 0:00:07]} 24. Ne2 {[%emt 0:28:21]} Kd6 {[%emt 0:00:11]} 25. Nc1 {[%emt 0:00:32]} Kd5 {[%emt 0:24:00]} 26. h4 {[%emt 0:05:27]} f5 {[%emt 0:01:19]} 27. Na2 {[%emt 0:01:20]} Bd2 {[%emt 0:00:58]} 28. g3 {[%emt 0:09:19]} c5 {[%emt 0:01:05]} 29. Ke2 {[%emt 0:00:36]} Bh6 {[%emt 0:00:07]} 30. f4 {[%emt 0:01:03]} Bf8 {[%emt 0:08:37]} 31. h5 {[%emt 0:01:28]} Re8+ {[%emt 0:01:32]} 32. Kf2 {[%emt 0:00:11]} Re3 {[%emt 0:00:03]} 33. Rd1 {[%emt 0:01:57]} Re6 {[%emt 0:00:53]} 34. Nc1 {[%emt 0:00:43]} Rh6 {[%emt 0:00:56]} 35. Rh1 {[%emt 0:00:58]} Bd6 {[%emt 0:00:29]} 36. Rh2 {[%emt 0:03:43]} Bc7 {[%emt 0:00:43]} 37. Kf3 {[%emt 0:03:41]} Bd6 {[%emt 0:00:01]} 38. g4 {[%emt 0:01:36]} fxg4+ 39. Kxg4 {[%emt 0:00:02]} Rf6 {[%emt 0:01:41]} 40. Rf2 {[%emt 0:00:00]} Bc7 {[%emt 0:00:00]} 41. f5 {[%emt 0:02:59]} h6 {[%emt 0:08:01]} 42. Rb2 {[%emt 0:29:01]} Rb6 {[%emt 0:03:35]} 43. Ne2 {[%emt 0:00:05]} Rb8 {[%emt 0:00:28]} 44. Nf4+ {[%emt 0:00:05]} Kc6 {[%emt 0:00:47]} 45. Kf3 {[%emt 0:00:58]} Kd6 {[%emt 0:17:11]} 46. Nh3 {[%emt 0:00:37]} Re8 {[%emt 0:00:04]} 47. Nf2 {[%emt 0:00:38]} Re3+ {[%emt 0:00:10]} 48. Kg2 {[%emt 0:00:04]} Kd5 {[%emt 0:00:22]} 49. Rc2 {[%emt 0:00:45]} Bd6 {[%emt 0:02:41]} 50. f6 {[%emt 0:00:12]} Be5 {[%emt 0:01:14]} 51. Kf1 {[%emt 0:00:56]} Rf3 {[%emt 0:01:00]} 52. Kg2 {[%emt 0:00:29]} Rxf6 {[%emt 0:01:03]} 53. Ne4 {[%emt 0:00:08]} Rc6 {[%emt 0:00:01]} 54. Rf2 {[%emt 0:00:45]} Ke6 {[%emt 0:00:11]} 55. Rc2 {[%emt 0:00:37]} Kd5 {[%emt 0:00:07]} 56. Rf2 {[%emt 0:00:04]} f6 {[%emt 0:00:22]} 57. Kf3 {[%emt 0:01:13]} f5 {[%emt 0:00:42]} 58. Nd2 {[%emt 0:00:08]} Bf6 {[%emt 0:01:34]} 59. Nc4 {[%emt 0:00:57]} Re6 {[%emt 0:00:19]} 60. Kg2 {[%emt 0:00:15]} Re1 {[%emt 0:00:57]} 61. Rxf5+ {[%emt 0:00:18]} Ke6 {[%emt 0:00:00]} 62. Rxc5 {[%emt 0:00:34]} Rd1 {[%emt 0:00:01]} 63. Rxa5 {[%emt 0:00:47]} Rxd3 {[%emt 0:00:04]} 64. Rb5 {[%emt 0:00:32]} Rc3 {[%emt 0:00:36]} 65. a5 {[%emt 0:00:09]} d3 {[%emt 0:00:16]} 66. Kf3 {[%emt 0:01:01]} Bg5 {[%emt 0:00:01]} 67. a6 {[%emt 0:00:28]} d2+ {[%emt 0:01:08]} 68. Ke2 {[%emt 0:00:00]} Rh3 {[%emt 0:01:11]} 69. Re5+ {[%emt 0:01:04]} Kf6 {[%emt 0:00:15]} 70. Rd5 {[%emt 0:00:39]} Rh1 {[%emt 0:01:47]} 71. Nxd2 {[%emt 0:00:33]} Ke6 {[%emt 0:00:02]} 72. Nf1 {[%emt 0:00:37]} Kxd5 {[%emt 0:00:56]} 73. a7 {[%emt 0:00:01]} 1-0

[Event "Sheikh Russel GM 2021"]
[Site "Dhaka"]
[Date "2021.10.23"]
[Round "5.7"]
[White "Aditya Mittal"]
[Black "Debashis, Das"]
[Result "1-0"]
[ECO "D90"]
[WhiteElo "2447"]
[BlackElo "2501"]
[Annotator "ChessBase"]
[PlyCount "71"]
[EventDate "2021.10.19"]
[EventType "swiss"]
[EventCountry "BAN"]
[SourceTitle "playchess.com"]
[Source "ChessBase"]
[SourceQuality "1"]
[TimeControl "40/5400+30:1800+30"]

1. d4 {[%emt 0:00:12]} Nf6 {[%emt 0:00:26]} 2. c4 {[%emt 0:00:04]} g6 {[%emt 0:00:08]} 3. Nc3 {[%emt 0:00:06]} d5 {[%emt 0:00:11]} 4. Nf3 {[%emt 0:00:56]} Bg7 {[%emt 0:00:12]} 5. h4 {[%emt 0:00:07]} O-O {[%emt 0:00:23]} 6. cxd5 {[%emt 0:00:11]} Nxd5 {[%emt 0:00:28]} 7. h5 {[%emt 0:00:08]} Bg4 {[%emt 0:01:32]} 8. hxg6 {[%emt 0:00:40]} hxg6 {[%emt 0:00:07]} 9. Nh2 {[%emt 0:01:37]} Bc8 {[%emt 0:05:40]} 10. e4 {[%emt 0:10:30]} Nxc3 {[%emt 0:15:55]} 11. bxc3 {[%emt 0:00:02]} Qd7 {[%emt 0:01:08]} 12. Nf3 {[%emt 0:08:10]} Qc6 {[%emt 0:06:02]} 13. Qd3 {[%emt 0:04:19]} Nd7 {[%emt 0:14:58]} 14. Bf4 {[%emt 0:25:25]} Rd8 {[%emt 0:09:30]} 15. Ng5 {[%emt 0:08:29]} Nb6 {[%emt 0:02:49]} 16. Qe3 {[%emt 0:11:48]} f6 {[%emt 0:13:44]} 17. Nf3 {[%emt 0:00:36]} g5 {[%emt 0:01:31]} 18. Bg3 {[%emt 0:01:27]} Bg4 {[%emt 0:04:35]} 19. Be2 {[%emt 0:04:29]} Qd7 {[%emt 0:05:34]} 20. Rd1 {[%emt 0:04:21]} Rac8 {[%emt 0:05:50]} 21. c4 {[%emt 0:02:27]} Qa4 {[%emt 0:01:09]} 22. c5 {[%emt 0:01:21]} Nc4 {[%emt 0:02:58]} 23. Qb3 {[%emt 0:08:39]} Qxb3 {[%emt 0:00:05]} 24. axb3 {[%emt 0:00:01]} Na5 {[%emt 0:00:05]} 25. Ra1 {[%emt 0:02:14]} b6 {[%emt 0:02:45]} 26. Ba6 {[%emt 0:01:22]} Ra8 {[%emt 0:00:29]} 27. Bxc7 {[%emt 0:01:02]} Rd7 {[%emt 0:04:54]} 28. cxb6 {[%emt 0:00:28]} axb6 {[%emt 0:00:22]} 29. Bc4+ {[%emt 0:00:08]} Nxc4 {[%emt 0:00:56]} 30. Rxa8+ {[%emt 0:00:02]} Kf7 {[%emt 0:00:07]} 31. bxc4 {[%emt 0:00:23]} Rxc7 {[%emt 0:00:02]} 32. Nd2 {[%emt 0:00:19]} b5 {[%emt 0:00:12]} 33. c5 {[%emt 0:01:05]} e5 {[%emt 0:00:06]} 34. f3 {[%emt 0:00:47]} Bd7 {[%emt 0:00:05]} 35. d5 {[%emt 0:02:00]} Rxc5 {[%emt 0:00:07]} 36. Ke2 {[%emt 0:00:07]} 1-0

[Event "Sheikh Russel GM 2021"]
[Site "Dhaka"]
[Date "2021.10.23"]
[Round "5.8"]
[White "Sumets, Andrey"]
[Black "Abdisalimov, Abdimalik"]
[Result "1-0"]
[ECO "E94"]
[WhiteElo "2497"]
[BlackElo "2406"]
[Annotator "ChessBase"]
[PlyCount "63"]
[EventDate "2021.10.19"]
[EventType "swiss"]
[EventCountry "BAN"]
[SourceTitle "playchess.com"]
[Source "ChessBase"]
[SourceQuality "1"]
[TimeControl "40/5400+30:1800+30"]

1. d4 {[%emt 0:00:03]} Nf6 {[%emt 0:00:48]} 2. c4 {[%emt 0:00:04]} g6 {[%emt 0:00:14]} 3. Nc3 {[%emt 0:00:05]} Bg7 {[%emt 0:00:05]} 4. e4 {[%emt 0:00:03]} O-O {[%emt 0:00:14]} 5. Nf3 {[%emt 0:00:05]} d6 {[%emt 0:00:05]} 6. Be2 {[%emt 0:00:05]} e5 {[%emt 0:00:10]} 7. O-O {[%emt 0:00:05]} c6 {[%emt 0:00:03]} 8. Re1 {[%emt 0:01:21]} Na6 {[%emt 0:00:59]} 9. Be3 {[%emt 0:00:13]} Re8 {[%emt 0:00:15]} 10. d5 {[%emt 0:03:03]} Ng4 {[%emt 0:11:49]} 11. Bc1 {[%emt 0:01:27]} f5 {[%emt 0:01:09]} 12. Ng5 {[%emt 0:26:21]} f4 {[%emt 0:05:22]} 13. Bxg4 {[%emt 0:02:53]} Qxg5 {[%emt 0:03:09]} 14. Bxc8 {[%emt 0:00:08]} Raxc8 {[%emt 0:00:05]} 15. Rb1 {[%emt 0:06:36]} Qe7 {[%emt 0:19:53]} 16. dxc6 {[%emt 0:08:57]} bxc6 {[%emt 0:11:37]} 17. b4 {[%emt 0:01:26]} Qf7 {[%emt 0:02:18]} 18. Qd3 {[%emt 0:03:02]} Nc7 {[%emt 0:01:42]} 19. Ba3 {[%emt 0:06:56]} f3 {[%emt 0:02:24]} 20. b5 {[%emt 0:12:10]} fxg2 {[%emt 0:06:02]} 21. bxc6 {[%emt 0:00:12]} Ne6 {[%emt 0:00:10]} 22. Qd5 {[%emt 0:05:53]} Nd4 {[%emt 0:03:54]} 23. Nb5 {[%emt 0:03:12]} Nf3+ {[%emt 0:11:11]} 24. Kxg2 {[%emt 0:00:08]} Nxe1+ {[%emt 0:00:31]} 25. Rxe1 {[%emt 0:00:05]} Bf8 {[%emt 0:00:20]} 26. Nxd6 {[%emt 0:04:54]} Bxd6 {[%emt 0:01:41]} 27. Bxd6 {[%emt 0:00:10]} Re6 {[%emt 0:03:52]} 28. c5 {[%emt 0:02:05]} Rce8 {[%emt 0:10:26]} 29. c7 {[%emt 0:00:17]} Kg7 {[%emt 0:00:05]} 30. Re3 {[%emt 0:01:49]} Kh6 {[%emt 0:04:23]} 31. Rf3 {[%emt 0:01:10]} Qg8 {[%emt 0:00:28]} 32. Rf8 {[%emt 0:03:21]} 1-0

[Event "Sheikh Russel GM 2021"]
[Site "Dhaka"]
[Date "2021.10.23"]
[Round "5.9"]
[White "Karthikeyan, P.."]
[Black "Rasulov, Vugar"]
[Result "1/2-1/2"]
[ECO "E32"]
[WhiteElo "2404"]
[BlackElo "2452"]
[Annotator "ChessBase"]
[PlyCount "40"]
[EventDate "2021.10.19"]
[EventType "swiss"]
[EventCountry "BAN"]
[SourceTitle "playchess.com"]
[Source "ChessBase"]
[SourceQuality "1"]
[TimeControl "40/5400+30:1800+30"]

1. d4 {[%emt 0:01:22]} Nf6 {[%emt 0:00:19]} 2. c4 {[%emt 0:00:11]} e6 {[%emt 0:00:22]} 3. Nc3 {[%emt 0:00:13]} Bb4 {[%emt 0:00:21]} 4. Qc2 {[%emt 0:00:08]} O-O {[%emt 0:00:16]} 5. a3 {[%emt 0:00:13]} Bxc3+ {[%emt 0:00:19]} 6. Qxc3 {[%emt 0:00:08]} b5 {[%emt 0:00:40]} 7. cxb5 {[%emt 0:00:32]} c6 {[%emt 0:00:04]} 8. f3 {[%emt 0:00:14]} Nd5 {[%emt 0:00:12]} 9. Qd3 {[%emt 0:01:03]} cxb5 {[%emt 0:02:32]} 10. e4 {[%emt 0:01:12]} Ne7 {[%emt 0:00:01]} 11. Nh3 {[%emt 0:04:17]} Nbc6 {[%emt 0:02:17]} 12. Be3 {[%emt 0:13:38]} f5 {[%emt 0:09:10]} 13. Be2 {[%emt 0:01:19]} fxe4 {[%emt 0:00:09]} 14. fxe4 {[%emt 0:00:23]} d5 {[%emt 0:06:57]} 15. e5 {[%emt 0:08:40]} Qa5+ {[%emt 0:00:15]} 16. Bd2 {[%emt 0:01:36]} Qb6 {[%emt 0:00:22]} 17. Ng5 {[%emt 0:01:22]} Ng6 {[%emt 0:04:28]} 18. Be3 {[%emt 0:11:11]} Qa5+ {[%emt 0:03:17]} 19. Bd2 {[%emt 0:01:09]} Qb6 {[%emt 0:00:06]} 20. Be3 {[%emt 0:02:01]} Qa5+ {[%emt 0:00:06]} 1/2-1/2

[Event "Sheikh Russel GM 2021"]
[Site "Dhaka"]
[Date "2021.10.23"]
[Round "5.13"]
[White "Sammed Jaykumar, Shete"]
[Black "Visakh N R"]
[Result "0-1"]
[ECO "C84"]
[WhiteElo "2413"]
[BlackElo "2515"]
[Annotator "ChessBase"]
[PlyCount "78"]
[EventDate "2021.10.19"]
[EventType "swiss"]
[EventCountry "BAN"]
[SourceTitle "playchess.com"]
[Source "ChessBase"]
[SourceQuality "1"]
[TimeControl "40/5400+30:1800+30"]

1. e4 {[%emt 0:00:03]} e5 {[%emt 0:00:08]} 2. Nf3 {[%emt 0:00:06]} Nc6 {[%emt 0:00:05]} 3. Bb5 {[%emt 0:00:05]} a6 {[%emt 0:00:08]} 4. Ba4 {[%emt 0:00:04]} Nf6 {[%emt 0:00:06]} 5. O-O {[%emt 0:00:07]} Be7 {[%emt 0:00:33]} 6. d3 {[%emt 0:00:09]} b5 {[%emt 0:00:38]} 7. Bb3 {[%emt 0:00:04]} d6 {[%emt 0:00:06]} 8. c3 {[%emt 0:00:11]} O-O {[%emt 0:00:07]} 9. a4 {[%emt 0:00:12]} Bd7 {[%emt 0:02:18]} 10. Bc2 {[%emt 0:00:44]} Re8 {[%emt 0:01:46]} 11. Re1 {[%emt 0:02:51]} h6 {[%emt 0:05:48]} 12. h3 {[%emt 0:01:12]} Bf8 {[%emt 0:00:20]} 13. Nbd2 {[%emt 0:00:08]} Rb8 {[%emt 0:07:17]} 14. axb5 {[%emt 0:06:24]} axb5 {[%emt 0:00:03]} 15. Nf1 {[%emt 0:00:18]} b4 {[%emt 0:10:39]} 16. Bd2 {[%emt 0:11:46]} d5 {[%emt 0:05:39]} 17. exd5 {[%emt 0:06:41]} Nxd5 {[%emt 0:00:06]} 18. Ng3 {[%emt 0:06:00]} bxc3 {[%emt 0:11:23]} 19. bxc3 {[%emt 0:00:08]} Nb6 {[%emt 0:00:06]} 20. Nh2 {[%emt 0:09:07]} Nd5 {[%emt 0:13:01]} 21. Ng4 {[%emt 0:04:43]} Nf6 {[%emt 0:04:06]} 22. Qf3 {[%emt 0:05:15]} Nxg4 {[%emt 0:04:28]} 23. hxg4 {[%emt 0:00:06]} Rb2 {[%emt 0:01:08]} 24. Rec1 {[%emt 0:00:46]} e4 {[%emt 0:06:48]} 25. Nxe4 {[%emt 0:02:09]} Ne5 {[%emt 0:00:12]} 26. Qg3 {[%emt 0:04:41]} Nxg4 {[%emt 0:00:10]} 27. Bd1 {[%emt 0:23:27]} Rxe4 {[%emt 0:11:36]} 28. dxe4 {[%emt 0:00:38]} Nxf2 {[%emt 0:01:31]} 29. Qxf2 {[%emt 0:09:51]} Rxd2 {[%emt 0:00:02]} 30. Qe3 {[%emt 0:00:07]} Be6 {[%emt 0:07:53]} 31. Bf3 {[%emt 0:00:41]} Be7 {[%emt 0:01:11]} 32. Rd1 {[%emt 0:01:21]} Bg5 {[%emt 0:00:02]} 33. Qc5 {[%emt 0:00:39]} Kh7 {[%emt 0:02:14]} 34. e5 {[%emt 0:04:49]} Bf5 {[%emt 0:01:07]} 35. c4 {[%emt 0:01:38]} Qd3 {[%emt 0:00:18]} 36. Rxd2 {[%emt 0:00:45]} Qxd2 {[%emt 0:00:02]} 37. Kh1 {[%emt 0:00:09]} Be3 {[%emt 0:01:05]} 38. Qe7 {[%emt 0:00:22]} Qf2 {[%emt 0:00:34]} 39. Rd1 {[%emt 0:00:52]} f6 {[%emt 0:01:50]} 0-1

[Event "Sheikh Russel GM 2021"]
[Site "Dhaka"]
[Date "2021.10.23"]
[Round "5.14"]
[White "Pranav Vijay"]
[Black "Koustav Chatterjee"]
[Result "0-1"]
[ECO "B90"]
[WhiteElo "2265"]
[BlackElo "2431"]
[Annotator "ChessBase"]
[PlyCount "148"]
[EventDate "2021.10.19"]
[EventType "swiss"]
[EventCountry "BAN"]
[SourceTitle "playchess.com"]
[Source "ChessBase"]
[SourceQuality "1"]
[TimeControl "40/5400+30:1800+30"]

1. e4 {[%emt 0:00:01]} c5 {[%emt 0:05:08]} 2. Nf3 {[%emt 0:00:10]} d6 {[%emt 0:00:06]} 3. d4 {[%emt 0:00:11]} cxd4 {[%emt 0:00:06]} 4. Nxd4 {[%emt 0:00:07]} Nf6 {[%emt 0:00:06]} 5. Nc3 {[%emt 0:00:10]} a6 {[%emt 0:00:06]} 6. Be3 {[%emt 0:00:28]} e5 {[%emt 0:00:08]} 7. Nb3 {[%emt 0:00:08]} Be6 {[%emt 0:00:17]} 8. Qd2 {[%emt 0:00:27]} Nbd7 {[%emt 0:00:17]} 9. f3 {[%emt 0:00:39]} h5 {[%emt 0:00:16]} 10. Be2 {[%emt 0:03:13]} Be7 {[%emt 0:01:39]} 11. O-O {[%emt 0:00:10]} b5 {[%emt 0:06:14]} 12. a4 {[%emt 0:25:42]} b4 {[%emt 0:05:39]} 13. Nd5 {[%emt 0:00:42]} Bxd5 {[%emt 0:04:44]} 14. exd5 {[%emt 0:00:15]} Nb6 {[%emt 0:00:21]} 15. Bxb6 {[%emt 0:02:29]} Qxb6+ {[%emt 0:00:40]} 16. Kh1 {[%emt 0:00:07]} h4 {[%emt 0:30:11]} 17. Bd3 {[%emt 0:21:29]} Nh5 {[%emt 0:06:39]} 18. Qf2 {[%emt 0:00:38]} Qxf2 {[%emt 0:11:34]} 19. Rxf2 {[%emt 0:00:19]} Nf4 {[%emt 0:05:57]} 20. Bc4 {[%emt 0:03:40]} f5 {[%emt 0:04:32]} 21. a5 {[%emt 0:01:31]} Kf7 {[%emt 0:00:43]} 22. Ra4 {[%emt 0:00:44]} Rhb8 {[%emt 0:00:07]} 23. Nc1 {[%emt 0:05:49]} Bd8 {[%emt 0:06:42]} 24. g3 {[%emt 0:00:56]} hxg3 {[%emt 0:01:51]} 25. hxg3 {[%emt 0:00:01]} Nh5 {[%emt 0:00:21]} 26. Kg2 {[%emt 0:00:13]} Rc8 {[%emt 0:01:37]} 27. b3 {[%emt 0:00:38]} Rc5 {[%emt 0:00:46]} 28. Nd3 {[%emt 0:00:11]} Rxa5 {[%emt 0:00:12]} 29. Rxb4 {[%emt 0:00:10]} Ra7 {[%emt 0:01:12]} 30. Rb8 {[%emt 0:00:53]} Bf6 {[%emt 0:00:23]} 31. Rb6 {[%emt 0:04:08]} Rd7 {[%emt 0:00:15]} 32. Rxa6 {[%emt 0:01:54]} Rxa6 {[%emt 0:00:07]} 33. Bxa6 {[%emt 0:00:04]} Ra7 {[%emt 0:00:22]} 34. Bc8 {[%emt 0:01:50]} g6 {[%emt 0:00:30]} 35. Nb4 {[%emt 0:05:04]} Rc7 {[%emt 0:00:57]} 36. Ba6 {[%emt 0:01:21]} Rc3 {[%emt 0:01:00]} 37. Bd3 {[%emt 0:01:32]} Bd8 {[%emt 0:01:47]} 38. Rf1 {[%emt 0:01:32]} Bb6 {[%emt 0:00:44]} 39. Na2 {[%emt 0:07:11]} Rc7 {[%emt 0:00:12]} 40. Bc4 {[%emt 0:00:00]} Bc5 {[%emt 0:00:00]} 41. Nc3 {[%emt 0:02:05]} Rc8 {[%emt 0:07:15]} 42. Rb1 {[%emt 0:04:40]} Ke7 {[%emt 0:02:20]} 43. Nb5 {[%emt 0:02:19]} Ra8 {[%emt 0:01:15]} 44. b4 {[%emt 0:04:26]} Be3 {[%emt 0:01:26]} 45. c3 {[%emt 0:04:18]} f4 {[%emt 0:01:28]} 46. g4 {[%emt 0:01:17]} Ng3 {[%emt 0:00:14]} 47. Bb3 {[%emt 0:02:23]} e4 {[%emt 0:03:30]} 48. c4 {[%emt 0:10:00]} Rh8 {[%emt 0:10:50]} 49. fxe4 {[%emt 0:13:12]} Nxe4 {[%emt 0:00:16]} 50. Ra1 {[%emt 0:00:32]} Ng5 {[%emt 0:01:51]} 51. Rf1 {[%emt 0:02:17]} Rh3 {[%emt 0:03:42]} 52. Bd1 {[%emt 0:00:16]} Rg3+ {[%emt 0:02:55]} 53. Kh2 {[%emt 0:00:01]} Rh3+ {[%emt 0:02:15]} 54. Kg2 {[%emt 0:00:02]} Rg3+ {[%emt 0:00:12]} 55. Kh2 {[%emt 0:00:02]} Ne4 {[%emt 0:01:00]} 56. c5 {[%emt 0:01:03]} dxc5 {[%emt 0:00:16]} 57. bxc5 {[%emt 0:00:02]} Bxc5 {[%emt 0:00:07]} 58. d6+ {[%emt 0:02:52]} Kd8 {[%emt 0:02:47]} 59. Re1 {[%emt 0:00:26]} Nf2 {[%emt 0:00:38]} 60. Rf1 {[%emt 0:00:49]} Rh3+ {[%emt 0:00:36]} 61. Kg2 {[%emt 0:00:01]} Rg3+ {[%emt 0:00:02]} 62. Kh2 {[%emt 0:00:01]} Rd3 {[%emt 0:00:50]} 63. Be2 {[%emt 0:01:27]} Rd2 {[%emt 0:00:02]} 64. Nc3 {[%emt 0:00:40]} Ne4 {[%emt 0:00:25]} 65. Rd1 {[%emt 0:00:28]} Rc2 {[%emt 0:00:33]} 66. Nxe4 {[%emt 0:00:33]} Rxe2+ {[%emt 0:00:03]} 67. Kh3 {[%emt 0:00:11]} Rxe4 {[%emt 0:00:05]} 68. Kh4 {[%emt 0:00:02]} f3 {[%emt 0:00:20]} 69. Rd5 {[%emt 0:00:44]} f2 {[%emt 0:00:07]} 70. Kg3 {[%emt 0:00:37]} f1=Q {[%emt 0:00:10]} 71. Kh2 {[%emt 0:00:04]} Qg1+ {[%emt 0:00:08]} 72. Kh3 {[%emt 0:00:03]} Qxg4+ {[%emt 0:00:05]} 73. Kh2 {[%emt 0:00:01]} Re2+ {[%emt 0:00:05]} 74. Kh1 {[%emt 0:00:01]} Qg2# {[%emt 0:00:05]} 0-1

[Event "Sheikh Russel GM 2021"]
[Site "Dhaka"]
[Date "2021.10.23"]
[Round "5.15"]
[White "Savchenko, Stanislav"]
[Black "Harikrishnan.A.Ra"]
[Result "0-1"]
[ECO "D30"]
[WhiteElo "2473"]
[BlackElo "2429"]
[Annotator "ChessBase"]
[PlyCount "73"]
[EventDate "2021.10.19"]
[EventType "swiss"]
[EventCountry "BAN"]
[SourceTitle "playchess.com"]
[Source "ChessBase"]
[SourceQuality "1"]
[TimeControl "40/5400+30:1800+30"]

1. Nf3 {[%emt 0:00:28]} d5 {[%emt 0:00:10]} 2. d4 {[%emt 0:00:41]} Nf6 {[%emt 0:00:05]} 3. c4 {[%emt 0:00:05]} c6 {[%emt 0:00:05]} 4. e3 {[%emt 0:03:01]} e6 {[%emt 0:00:07]} 5. Bd3 {[%emt 0:01:18]} dxc4 {[%emt 0:00:58]} 6. Bxc4 {[%emt 0:00:06]} b5 {[%emt 0:00:13]} 7. Bd3 {[%emt 0:00:43]} Nbd7 {[%emt 0:00:18]} 8. e4 {[%emt 0:05:42]} h6 {[%emt 0:07:13]} 9. O-O {[%emt 0:05:57]} Bb7 {[%emt 0:01:53]} 10. e5 {[%emt 0:06:51]} Nd5 {[%emt 0:00:32]} 11. Nc3 {[%emt 0:00:04]} N7b6 {[%emt 0:14:49]} 12. Ne4 {[%emt 0:05:01]} a6 {[%emt 0:01:11]} 13. Bd2 {[%emt 0:03:47]} Rc8 {[%emt 0:06:54]} 14. Rc1 {[%emt 0:02:17]} Na4 {[%emt 0:11:20]} 15. Rc2 {[%emt 0:15:29]} Nb4 {[%emt 0:01:15]} 16. Bxb4 {[%emt 0:04:46]} Bxb4 {[%emt 0:00:07]} 17. Nc5 {[%emt 0:01:28]} Nxc5 {[%emt 0:06:24]} 18. dxc5 {[%emt 0:00:05]} Qd5 {[%emt 0:03:52]} 19. Qe2 {[%emt 0:10:58]} Qxa2 {[%emt 0:04:37]} 20. Qe4 {[%emt 0:06:07]} a5 {[%emt 0:09:02]} 21. Qg4 {[%emt 0:09:32]} Kf8 {[%emt 0:02:09]} 22. Be4 {[%emt 0:02:35]} Rd8 {[%emt 0:01:39]} 23. Qf4 {[%emt 0:02:00]} Rd7 {[%emt 0:03:18]} 24. g4 {[%emt 0:00:27]} Ke8 {[%emt 0:04:56]} 25. g5 {[%emt 0:03:11]} Qb3 {[%emt 0:03:26]} 26. Nd2 {[%emt 0:07:29]} hxg5 {[%emt 0:02:21]} 27. Qxg5 {[%emt 0:01:06]} Qh3 {[%emt 0:01:39]} 28. Nf3 {[%emt 0:00:01]} Bd2 {[%emt 0:10:20]} 29. Qg3 {[%emt 0:03:12]} Qxg3+ {[%emt 0:00:14]} 30. fxg3 {[%emt 0:00:12]} Be3+ {[%emt 0:01:14]} 31. Kg2 {[%emt 0:00:06]} Ke7 {[%emt 0:00:20]} 32. Re1 {[%emt 0:01:08]} Bh6 {[%emt 0:00:12]} 33. g4 {[%emt 0:00:23]} Bf4 {[%emt 0:00:30]} 34. g5 {[%emt 0:00:29]} g6 {[%emt 0:03:03]} 35. h4 {[%emt 0:00:41]} Rhd8 {[%emt 0:00:30]} 36. b3 {[%emt 0:00:30]} Rd1 {[%emt 0:00:56]} 37. Ree2 {[%emt 0:01:04]} 0-1

[Event "Sheikh Russel GM 2021"]
[Site "Dhaka"]
[Date "2021.10.23"]
[Round "5.16"]
[White "Vignesh N R"]
[Black "Murshed, Niaz"]
[Result "1/2-1/2"]
[ECO "B48"]
[WhiteElo "2453"]
[BlackElo "2410"]
[Annotator "ChessBase"]
[PlyCount "47"]
[EventDate "2021.10.19"]
[EventType "swiss"]
[EventCountry "BAN"]
[SourceTitle "playchess.com"]
[Source "ChessBase"]
[SourceQuality "1"]
[TimeControl "40/5400+30:1800+30"]

1. e4 {[%emt 0:00:04]} c5 {[%emt 0:00:08]} 2. Nf3 {[%emt 0:00:08]} e6 {[%emt 0:00:34]} 3. d4 {[%emt 0:00:14]} cxd4 {[%emt 0:00:08]} 4. Nxd4 {[%emt 0:00:04]} Nc6 {[%emt 0:00:06]} 5. Nc3 {[%emt 0:00:06]} Qc7 {[%emt 0:00:07]} 6. Be3 {[%emt 0:00:28]} a6 {[%emt 0:00:07]} 7. g4 {[%emt 0:00:24]} b5 {[%emt 0:07:47]} 8. Nxc6 {[%emt 0:00:22]} Qxc6 {[%emt 0:01:42]} 9. Qd2 {[%emt 0:00:14]} Bb7 {[%emt 0:01:25]} 10. O-O-O {[%emt 0:00:56]} Rd8 {[%emt 0:18:50]} 11. f3 {[%emt 0:10:57]} Ne7 {[%emt 0:05:06]} 12. Qf2 {[%emt 0:20:16]} Ng6 {[%emt 0:03:14]} 13. Ne2 {[%emt 0:07:05]} Rc8 {[%emt 0:18:49]} 14. Nd4 {[%emt 0:00:22]} Qc7 {[%emt 0:00:03]} 15. Nb3 {[%emt 0:09:41]} Bd6 {[%emt 0:08:23]} 16. Bb6 {[%emt 0:01:51]} Qb8 {[%emt 0:01:12]} 17. Kb1 {[%emt 0:04:19]} Be5 {[%emt 0:02:32]} 18. Nc5 {[%emt 0:08:04]} d6 {[%emt 0:00:18]} 19. Nd3 {[%emt 0:02:18]} O-O {[%emt 0:00:55]} 20. h4 {[%emt 0:01:21]} Nf4 {[%emt 0:05:01]} 21. Ba7 {[%emt 0:09:56]} Qc7 {[%emt 0:02:05]} 22. Bb6 {[%emt 0:00:01]} Qb8 {[%emt 0:04:07]} 23. Ba7 {[%emt 0:03:55]} Qc7 {[%emt 0:01:00]} 24. Bb6 {[%emt 0:00:04]} 1/2-1/2